[Event "Sunway Sitges Chess Festival"]
[Date "2024.12.21"]
[White "Paasikangas, Johanna"]
[Black "Safarov, Deniel"]
[WhiteElo "2048"]
[BlackElo "2319"]
[Round "7.29"]
[Result "0-1"]
[TimeControl "40/5400+30:1800+30"]

1. d4 {[%clk 1:30:58]} 1... g6 {[%clk 1:30:49]} 2. c4 {[%clk 1:30:40]} 2... Bg7
{[%clk 1:31:14]} 3. Nc3 {[%clk 1:31:04]} 3... d6 {[%clk 1:31:40]} 4. e4 {[%clk
1:28:48]} 4... Nf6 {[%clk 1:31:43]} 5. Nf3 {[%clk 1:29:10]} 5... O-O {[%clk
1:32:07]} 6. g3 {[%clk 1:28:37]} 6... c6 {[%clk 1:30:32]} 7. Bg2 {[%clk
1:28:17]} 7... Qb6 {[%clk 1:30:57]} 8. O-O {[%clk 1:27:06]} 8... Bg4 {[%clk
1:31:09]} 9. h3 {[%clk 1:24:42]} 9... Bxf3 {[%clk 1:29:54]} 10. Bxf3 {[%clk
1:24:57]} 10... Nfd7 {[%clk 1:30:18]} 11. Ne2 {[%clk 1:18:02]} 11... c5 {[%clk
1:29:57]} 12. Bg5 {[%clk 1:03:48]} 12... Re8 {[%clk 1:19:12]} 13. e5 {[%clk
0:58:00]} 13... dxe5 {[%clk 1:03:31]} 14. dxc5 {[%clk 0:55:21]} 14... Nxc5
{[%clk 1:02:55]} 15. Be3 {[%clk 0:53:52]} 15... Nba6 {[%clk 0:56:10]} 16. Rb1
{[%clk 0:45:59]} 16... Rad8 {[%clk 0:52:03]} 17. Qc1 {[%clk 0:44:50]} 17... Qc7
{[%clk 0:48:18]} 18. Nc3 {[%clk 0:37:59]} 18... Qc8 {[%clk 0:41:55]} 19. Bg2
{[%clk 0:35:10]} 19... Nb4 {[%clk 0:37:18]} 20. Nd5 {[%clk 0:25:11]} 20... Nbd3
{[%clk 0:29:39]} 21. Qc2 {[%clk 0:22:56]} 21... e6 {[%clk 0:26:24]} 22. Nc3
{[%clk 0:22:31]} 22... f5 {[%clk 0:23:33]} 23. a3 {[%clk 0:15:15]} 23... e4
{[%clk 0:19:59]} 24. b4 {[%clk 0:12:04]} 24... Nd7 {[%clk 0:19:24]} 25. Bg5
{[%clk 0:06:38]} 25... Qxc4 {[%clk 0:15:55]} 26. Bxd8 {[%clk 0:06:35]} 26...
Rxd8 {[%clk 0:15:44]} 27. Qb3 {[%clk 0:04:03]} 27... Qxc3 {[%clk 0:15:47]} 28.
Qxe6+ {[%clk 0:04:28]} 28... Kh8 {[%clk 0:16:05]} 29. Qd5 {[%clk 0:02:10]} 29...
Qc7 {[%clk 0:15:58]} 30. a4 {[%clk 0:02:09]} 30... N7e5 {[%clk 0:15:21]} 31. Qa2
{[%clk 0:01:59]} 31... h5 {[%clk 0:13:59]} 32. Rfd1 {[%clk 0:00:41]} 32... h4
{[%clk 0:13:50]} 33. Bf1 {[%clk 0:00:35]} 33... hxg3 {[%clk 0:14:00]} 34. fxg3
{[%clk 0:01:04]} 34... Nf3+ {[%clk 0:14:01]} 35. Kg2 {[%clk 0:01:25]} 35... Qc6
{[%clk 0:12:21]} 36. Rbc1 {[%clk 0:01:34]} 36... Nfe1+ {[%clk 0:07:48]} 37. Kh2
{[%clk 0:01:23]} 37... Qb6 {[%clk 0:07:47]} 38. Bxd3 {[%clk 0:01:09]} 38... Nxd3
{[%clk 0:08:03]} 39. Rc4 {[%clk 0:01:23]} 39... Be5 {[%clk 0:07:10]} 40. Qd2
{[%clk 0:31:22]} 40... Kg7 {[%clk 0:36:57]} 41. Qg2 {[%clk 0:30:22]} 41... Nf4
{[%clk 0:35:59]} 0-1

[Variant "Standard"]
[Site "Europe Echecs"]

[Event "Sunway Sitges Chess Festival"]
[Date "2024.12.21"]
[White "Karimov, Alisher"]
[Black "Janiashvili, Mariami"]
[WhiteElo "2296"]
[BlackElo "2017"]
[Round "7.30"]
[Result "1-0"]
[TimeControl "40/5400+30:1800+30"]

1. d4 {[%clk 1:30:46]} 1... d5 {[%clk 1:30:57]} 2. Nf3 {[%clk 1:30:32]} 2... Nf6
{[%clk 1:31:20]} 3. g3 {[%clk 1:30:26]} 3... c5 {[%clk 1:28:44]} 4. Bg2 {[%clk
1:30:25]} 4... Nc6 {[%clk 1:26:42]} 5. O-O {[%clk 1:30:43]} 5... e6 {[%clk
1:26:24]} 6. c4 {[%clk 1:30:41]} 6... dxc4 {[%clk 1:13:20]} 7. Qa4 {[%clk
1:31:00]} 7... Bd7 {[%clk 1:10:33]} 8. Qxc4 {[%clk 1:31:08]} 8... cxd4 {[%clk
1:02:32]} 9. Nxd4 {[%clk 1:30:26]} 9... Rc8 {[%clk 1:02:32]} 10. Nc3 {[%clk
1:22:56]} 10... Nxd4 {[%clk 0:56:06]} 11. Qxd4 {[%clk 1:22:48]} 11... Bc5 {[%clk
0:56:31]} 12. Qh4 {[%clk 1:17:17]} 12... Bc6 {[%clk 0:52:27]} 13. Bg5 {[%clk
1:07:10]} 13... Be7 {[%clk 0:41:47]} 14. Bxc6+ {[%clk 0:50:08]} 14... Rxc6
{[%clk 0:41:59]} 15. e4 {[%clk 0:49:41]} 15... Nd7 {[%clk 0:39:30]} 16. Bxe7
{[%clk 0:46:35]} 16... Qxe7 {[%clk 0:37:51]} 17. Qf4 {[%clk 0:46:56]} 17... O-O
{[%clk 0:35:18]} 18. e5 {[%clk 0:40:32]} 18... Qc5 {[%clk 0:30:22]} 19. Rfe1
{[%clk 0:40:11]} 19... f6 {[%clk 0:27:09]} 20. exf6 {[%clk 0:36:16]} 20... Rxf6
{[%clk 0:27:20]} 21. Qe3 {[%clk 0:33:09]} 21... Ne5 {[%clk 0:15:22]} 22. Qxc5
{[%clk 0:22:21]} 22... Nf3+ {[%clk 0:15:50]} 23. Kf1 {[%clk 0:20:33]} 23... Rxc5
{[%clk 0:16:00]} 24. Ne4 {[%clk 0:18:13]} 24... Nxe1 {[%clk 0:16:14]} 25. Nxc5
{[%clk 0:18:29]} 25... Nf3 {[%clk 0:15:09]} 26. Kg2 {[%clk 0:18:31]} 26... b6
{[%clk 0:14:21]} 27. Ne4 {[%clk 0:18:18]} 27... Rf8 {[%clk 0:10:28]} 28. Rd1
{[%clk 0:18:18]} 28... Ne5 {[%clk 0:10:19]} 29. b3 {[%clk 0:15:42]} 29... h6
{[%clk 0:07:30]} 30. Rd6 {[%clk 0:15:53]} 30... Re8 {[%clk 0:05:59]} 31. f4
{[%clk 0:15:55]} 31... Ng6 {[%clk 0:05:37]} 32. Rd7 {[%clk 0:15:11]} 32... Re7
{[%clk 0:06:06]} 33. Rd8+ {[%clk 0:14:59]} 33... Kh7 {[%clk 0:05:53]} 34. h4
{[%clk 0:13:35]} 34... Rc7 {[%clk 0:05:19]} 35. Kf3 {[%clk 0:10:04]} 35... Ne7
{[%clk 0:03:53]} 36. h5 {[%clk 0:09:35]} 36... Nd5 {[%clk 0:02:18]} 37. Re8
{[%clk 0:09:10]} 37... Nc3 {[%clk 0:01:04]} 38. Nd6 {[%clk 0:03:31]} 38... Nxa2
{[%clk 0:00:56]} 39. Nc4 {[%clk 0:03:42]} 39... g6 {[%clk 0:00:43]} 40. hxg6+
{[%clk 0:33:35]} 40... Kxg6 {[%clk 0:31:12]} 41. Rxe6+ {[%clk 0:33:45]} 41...
Kg7 {[%clk 0:31:14]} 42. Nd6 {[%clk 0:33:43]} 42... h5 {[%clk 0:23:31]} 43. Ne8+
{[%clk 0:33:55]} 1-0

[Variant "Standard"]
[Site "Europe Echecs"]

[Event "Sunway Sitges Chess Festival"]
[Date "2024.12.21"]
[White "Mannion, Stephen R"]
[Black "Coles, Robin"]
[WhiteElo "2139"]
[BlackElo "2291"]
[Round "7.31"]
[Result "0-1"]
[TimeControl "40/5400+30:1800+30"]

1. e4 {[%clk 1:30:28]} 1... e6 {[%clk 1:30:49]} 2. d4 {[%clk 1:30:52]} 2... d5
{[%clk 1:31:17]} 3. Nd2 {[%clk 1:31:16]} 3... c5 {[%clk 1:31:43]} 4. Ngf3 {[%clk
1:31:27]} 4... cxd4 {[%clk 1:32:06]} 5. Nxd4 {[%clk 1:31:30]} 5... Nf6 {[%clk
1:32:29]} 6. exd5 {[%clk 1:31:44]} 6... a6 {[%clk 1:32:53]} 7. N2f3 {[%clk
1:19:07]} 7... Qxd5 {[%clk 1:32:07]} 8. Be2 {[%clk 1:18:56]} 8... e5 {[%clk
1:21:59]} 9. Nb3 {[%clk 1:19:20]} 9... Qxd1+ {[%clk 1:21:48]} 10. Bxd1 {[%clk
1:19:47]} 10... Nc6 {[%clk 1:21:57]} 11. O-O {[%clk 1:19:49]} 11... Be6 {[%clk
1:19:44]} 12. Re1 {[%clk 1:16:48]} 12... O-O-O {[%clk 1:17:47]} 13. Be3 {[%clk
1:06:41]} 13... Nd5 {[%clk 1:06:35]} 14. Bc5 {[%clk 0:56:40]} 14... f6 {[%clk
1:06:24]} 15. Bxf8 {[%clk 0:50:18]} 15... Rhxf8 {[%clk 1:05:05]} 16. c3 {[%clk
0:50:45]} 16... Nf4 {[%clk 1:02:51]} 17. Nc5 {[%clk 0:49:03]} 17... Bd5 {[%clk
0:57:22]} 18. g3 {[%clk 0:36:54]} 18... Ng6 {[%clk 0:49:19]} 19. b3 {[%clk
0:35:44]} 19... Nb8 {[%clk 0:38:40]} 20. c4 {[%clk 0:35:42]} 20... Bc6 {[%clk
0:37:09]} 21. Re3 {[%clk 0:27:33]} 21... Rd6 {[%clk 0:31:41]} 22. Bc2 {[%clk
0:25:33]} 22... Ne7 {[%clk 0:31:50]} 23. Ne4 {[%clk 0:19:09]} 23... Bxe4 {[%clk
0:28:27]} 24. Rxe4 {[%clk 0:19:24]} 24... Nbc6 {[%clk 0:26:45]} 25. Re2 {[%clk
0:17:56]} 25... Nb4 {[%clk 0:19:51]} 26. Kg2 {[%clk 0:17:19]} 26... Rfd8 {[%clk
0:17:47]} 27. h4 {[%clk 0:17:20]} 27... Nxc2 {[%clk 0:17:55]} 28. Rxc2 {[%clk
0:17:47]} 28... e4 {[%clk 0:18:04]} 29. Ng1 {[%clk 0:17:28]} 29... Nc6 {[%clk
0:16:27]} 30. Re2 {[%clk 0:13:35]} 30... f5 {[%clk 0:16:26]} 31. f3 {[%clk
0:07:03]} 31... Nd4 {[%clk 0:15:41]} 32. Rb2 {[%clk 0:07:29]} 32... Nxf3 {[%clk
0:13:24]} 33. Nxf3 {[%clk 0:07:57]} 33... exf3+ {[%clk 0:13:48]} 34. Kxf3 {[%clk
0:08:22]} 34... Rd3+ {[%clk 0:14:03]} 35. Kf2 {[%clk 0:08:44]} 35... f4 {[%clk
0:13:02]} 36. gxf4 {[%clk 0:07:44]} 36... Rf8 {[%clk 0:08:26]} 37. Ke2 {[%clk
0:05:48]} 37... Rh3 {[%clk 0:08:51]} 38. Rf1 {[%clk 0:05:38]} 38... Rxh4 {[%clk
0:09:08]} 39. Ke3 {[%clk 0:05:53]} 39... g5 {[%clk 0:04:42]} 40. f5 {[%clk
0:36:19]} 40... Re8+ {[%clk 0:32:03]} 41. Kd3 {[%clk 0:34:48]} 41... Rd8+ {[%clk
0:21:05]} 42. Kc3 {[%clk 0:34:21]} 42... Rf8 {[%clk 0:20:49]} 43. Kd3 {[%clk
0:28:55]} 43... Kd7 {[%clk 0:14:34]} 44. Rg2 {[%clk 0:27:05]} 44... h6 {[%clk
0:13:08]} 45. f6 {[%clk 0:22:17]} 45... Rf7 {[%clk 0:11:55]} 46. b4 {[%clk
0:14:49]} 46... Ke8 {[%clk 0:10:01]} 47. b5 {[%clk 0:06:23]} 47... Rd7+ {[%clk
0:09:06]} 48. Kc3 {[%clk 0:06:16]} 48... Rc7 {[%clk 0:08:20]} 49. bxa6 {[%clk
0:05:21]} 49... Rcxc4+ {[%clk 0:07:35]} 50. Kb3 {[%clk 0:05:14]} 50... bxa6
{[%clk 0:07:18]} 51. f7+ {[%clk 0:05:00]} 51... Kf8 {[%clk 0:07:44]} 52. Re2
{[%clk 0:05:16]} 52... Rcf4 {[%clk 0:06:44]} 53. Rc1 {[%clk 0:05:11]} 53... Rb4+
{[%clk 0:06:45]} 54. Ka3 {[%clk 0:05:21]} 54... Ra4+ {[%clk 0:07:10]} 55. Kb2
{[%clk 0:05:46]} 55... Rab4+ {[%clk 0:06:21]} 56. Ka3 {[%clk 0:06:02]} 56...
Ra4+ {[%clk 0:06:23]} 57. Kb2 {[%clk 0:06:30]} 57... Kxf7 {[%clk 0:06:44]} 58.
Rc7+ {[%clk 0:06:34]} 58... Kg6 {[%clk 0:07:06]} 59. Re6+ {[%clk 0:06:03]} 59...
Kh5 {[%clk 0:07:05]} 60. Rcc6 {[%clk 0:06:25]} 60... Kg4 {[%clk 0:06:16]} 61.
Rxa6 {[%clk 0:05:44]} 61... Rxa6 {[%clk 0:05:06]} 62. Rxa6 {[%clk 0:06:13]}
62... Rh2+ {[%clk 0:05:22]} 63. Kb3 {[%clk 0:06:28]} 63... h5 {[%clk 0:05:40]}
64. a4 {[%clk 0:06:53]} 64... h4 {[%clk 0:05:33]} 65. a5 {[%clk 0:07:18]} 65...
h3 {[%clk 0:04:48]} 66. Rc6 {[%clk 0:07:20]} 66... Re2 {[%clk 0:03:53]} 67. Rc4+
{[%clk 0:06:57]} 67... Kh5 {[%clk 0:02:54]} 68. a6 {[%clk 0:06:12]} 68... Re8
{[%clk 0:01:46]} 69. a7 {[%clk 0:06:18]} 69... Ra8 {[%clk 0:02:09]} 70. Rc7
{[%clk 0:06:16]} 70... Kh4 {[%clk 0:01:52]} 71. Kc3 {[%clk 0:05:34]} 71... h2
{[%clk 0:01:30]} 72. Kd4 {[%clk 0:05:39]} 72... Kg4 {[%clk 0:01:20]} 73. Rh7
{[%clk 0:05:21]} 73... Kg3 {[%clk 0:01:39]} 74. Rh5 {[%clk 0:05:05]} 74... Rxa7
{[%clk 0:01:11]} 75. Rxg5+ {[%clk 0:05:22]} 75... Kh4 {[%clk 0:01:36]} 76. Rg8
{[%clk 0:05:24]} 76... Rh7 {[%clk 0:02:02]} 0-1

[Variant "Standard"]
[Site "Europe Echecs"]

[Event "Sunway Sitges Chess Festival"]
[Date "2024.12.21"]
[White "Torres Rosas, Luis Carlos"]
[Black "Koh, Ming Yao Gavin"]
[WhiteElo "2277"]
[BlackElo "1995"]
[Round "7.32"]
[Result "0-1"]
[TimeControl "40/5400+30:1800+30"]

1. c4 {[%clk 1:30:50]} 1... e6 {[%clk 1:30:54]} 2. g3 {[%clk 1:24:05]} 2... d5
{[%clk 1:30:48]} 3. Bg2 {[%clk 1:24:29]} 3... d4 {[%clk 1:31:07]} 4. Nf3 {[%clk
1:24:12]} 4... Nc6 {[%clk 1:31:24]} 5. d3 {[%clk 1:22:39]} 5... Bc5 {[%clk
1:30:09]} 6. O-O {[%clk 1:18:55]} 6... a5 {[%clk 1:30:01]} 7. Nbd2 {[%clk
1:08:11]} 7... e5 {[%clk 1:29:40]} 8. a3 {[%clk 0:57:48]} 8... Nf6 {[%clk
1:26:56]} 9. Rb1 {[%clk 0:54:05]} 9... a4 {[%clk 1:18:43]} 10. b4 {[%clk
0:49:03]} 10... axb3 {[%clk 1:18:59]} 11. Nxb3 {[%clk 0:49:23]} 11... Be7 {[%clk
1:19:04]} 12. Ne1 {[%clk 0:45:58]} 12... O-O {[%clk 1:17:12]} 13. Nc2 {[%clk
0:46:21]} 13... Bf5 {[%clk 1:13:45]} 14. Bg5 {[%clk 0:32:41]} 14... Ra7 {[%clk
1:05:45]} 15. Bxf6 {[%clk 0:32:52]} 15... Bxf6 {[%clk 1:06:08]} 16. Nd2 {[%clk
0:28:27]} 16... Qd7 {[%clk 1:01:07]} 17. Re1 {[%clk 0:28:37]} 17... Be7 {[%clk
0:49:45]} 18. Rb5 {[%clk 0:28:50]} 18... f6 {[%clk 0:45:15]} 19. Rb3 {[%clk
0:13:20]} 19... Nd8 {[%clk 0:37:16]} 20. e3 {[%clk 0:13:42]} 20... dxe3 {[%clk
0:36:12]} 21. fxe3 {[%clk 0:13:42]} 21... c6 {[%clk 0:35:04]} 22. d4 {[%clk
0:13:47]} 22... exd4 {[%clk 0:19:56]} 23. Nxd4 {[%clk 0:13:21]} 23... Bg4 {[%clk
0:17:58]} 24. Qc1 {[%clk 0:12:37]} 24... Ne6 {[%clk 0:16:52]} 25. Nxe6 {[%clk
0:12:49]} 25... Bxe6 {[%clk 0:16:56]} 26. Rc3 {[%clk 0:12:12]} 26... Rfa8 {[%clk
0:16:19]} 27. c5 {[%clk 0:12:36]} 27... f5 {[%clk 0:14:36]} 28. Nf3 {[%clk
0:13:02]} 28... Bf6 {[%clk 0:14:06]} 29. Rd1 {[%clk 0:13:27]} 29... Qxd1+ {[%clk
0:09:51]} 30. Qxd1 {[%clk 0:13:43]} 30... Bxc3 {[%clk 0:10:18]} 31. Qd6 {[%clk
0:14:01]} 31... Bc4 {[%clk 0:06:49]} 32. Ne5 {[%clk 0:10:23]} 32... Bxe5 {[%clk
0:06:33]} 33. Qxe5 {[%clk 0:10:47]} 33... Rxa3 {[%clk 0:06:40]} 34. h4 {[%clk
0:11:12]} 34... Bf7 {[%clk 0:04:10]} 35. Kh2 {[%clk 0:09:43]} 35... Re8 {[%clk
0:03:40]} 36. Qc7 {[%clk 0:07:33]} 36... Rb3 {[%clk 0:03:29]} 37. Qd7 {[%clk
0:02:50]} 37... h5 {[%clk 0:02:38]} 38. Qxf5 {[%clk 0:02:58]} 38... Rbxe3 {[%clk
0:02:59]} 39. Bf1 {[%clk 0:02:37]} 39... R3e5 {[%clk 0:03:16]} 40. Qf2 {[%clk
0:32:59]} 40... Rd8 {[%clk 0:31:55]} 41. Qc2 {[%clk 0:31:54]} 41... Red5 {[%clk
0:27:53]} 42. Qc3 {[%clk 0:30:11]} 42... Rd2+ {[%clk 0:27:08]} 43. Kg1 {[%clk
0:30:36]} 43... Rd1 {[%clk 0:27:13]} 44. Kf2 {[%clk 0:31:01]} 44... Bg6 {[%clk
0:24:13]} 45. Be2 {[%clk 0:30:54]} 45... R1d2 {[%clk 0:23:54]} 46. Ke3 {[%clk
0:31:19]} 46... R8d3+ {[%clk 0:18:50]} 47. Bxd3 {[%clk 0:31:43]} 47... Rxd3+
{[%clk 0:19:05]} 48. Qxd3 {[%clk 0:32:09]} 48... Bxd3 {[%clk 0:19:29]} 49. Kxd3
{[%clk 0:32:29]} 49... Kf7 {[%clk 0:19:54]} 50. Ke4 {[%clk 0:28:08]} 50... Ke6
{[%clk 0:20:16]} 51. Kf4 {[%clk 0:28:36]} 51... Kd5 {[%clk 0:19:43]} 52. Kg5
{[%clk 0:28:21]} 52... Kxc5 {[%clk 0:20:03]} 53. Kxh5 {[%clk 0:28:46]} 53... b5
{[%clk 0:20:27]} 0-1

[Variant "Standard"]
[Site "Europe Echecs"]

[Event "Sunway Sitges Chess Festival"]
[Date "2024.12.21"]
[White "Brzezina, Piotr"]
[Black "Bartakke Aditya"]
[WhiteElo "2274"]
[BlackElo "1957"]
[Round "7.33"]
[Result "1-0"]
[TimeControl "40/5400+30:1800+30"]

1. e4 {[%clk 1:25:07]} 1... c5 {[%clk 1:30:46]} 2. Nf3 {[%clk 1:25:27]} 2... d6
{[%clk 1:31:11]} 3. d4 {[%clk 1:24:41]} 3... cxd4 {[%clk 1:31:31]} 4. Nxd4
{[%clk 1:25:08]} 4... Nf6 {[%clk 1:31:53]} 5. Nc3 {[%clk 1:25:31]} 5... Nc6
{[%clk 1:32:18]} 6. Bg5 {[%clk 1:25:36]} 6... e6 {[%clk 1:32:37]} 7. Qd2 {[%clk
1:25:26]} 7... a6 {[%clk 1:32:38]} 8. O-O-O {[%clk 1:25:04]} 8... Bd7 {[%clk
1:32:35]} 9. f3 {[%clk 1:08:06]} 9... Be7 {[%clk 1:32:33]} 10. Kb1 {[%clk
1:06:26]} 10... Nxd4 {[%clk 1:24:28]} 11. Qxd4 {[%clk 1:06:37]} 11... O-O {[%clk
1:24:24]} 12. h4 {[%clk 1:05:19]} 12... b5 {[%clk 1:17:14]} 13. e5 {[%clk
0:50:46]} 13... dxe5 {[%clk 0:58:05]} 14. Qxe5 {[%clk 0:51:09]} 14... Re8 {[%clk
0:55:18]} 15. Bd3 {[%clk 0:45:51]} 15... b4 {[%clk 0:47:09]} 16. Ne4 {[%clk
0:44:32]} 16... Bc6 {[%clk 0:44:22]} 17. Bb5 {[%clk 0:11:05]} 17... Nd7 {[%clk
0:40:22]} 18. Bxc6 {[%clk 0:11:29]} 18... Nxe5 {[%clk 0:40:44]} 19. Rxd8 {[%clk
0:11:56]} 19... Nxc6 {[%clk 0:40:15]} 20. Rxa8 {[%clk 0:11:26]} 20... Rxa8
{[%clk 0:40:38]} 21. Bxe7 {[%clk 0:11:25]} 21... Nxe7 {[%clk 0:41:00]} 22. Rd1
{[%clk 0:11:28]} 22... Nd5 {[%clk 0:39:23]} 23. Rd2 {[%clk 0:09:31]} 23... Kf8
{[%clk 0:38:39]} 24. c4 {[%clk 0:09:29]} 24... bxc3 {[%clk 0:35:37]} 25. Nxc3
{[%clk 0:05:22]} 25... Nb6 {[%clk 0:35:30]} 26. Rd4 {[%clk 0:04:06]} 26... Rc8
{[%clk 0:28:32]} 27. Rd6 {[%clk 0:03:33]} 27... Rb8 {[%clk 0:28:37]} 28. Rc6
{[%clk 0:03:35]} 28... Ke7 {[%clk 0:22:31]} 29. Rc7+ {[%clk 0:04:04]} 29... Kf6
{[%clk 0:16:52]} 30. Kc2 {[%clk 0:04:01]} 30... h5 {[%clk 0:16:26]} 31. b3
{[%clk 0:02:36]} 31... Rf8 {[%clk 0:13:16]} 32. Rb7 {[%clk 0:02:14]} 32... Na8
{[%clk 0:10:25]} 33. Ra7 {[%clk 0:02:29]} 33... Ke5 {[%clk 0:10:40]} 34. Kd3
{[%clk 0:01:31]} 34... Rd8+ {[%clk 0:09:29]} 35. Ke3 {[%clk 0:01:56]} 35... Rc8
{[%clk 0:09:30]} 36. Ne4 {[%clk 0:01:21]} 36... Nc7 {[%clk 0:09:33]} 37. Kd2
{[%clk 0:00:52]} 37... Kd5 {[%clk 0:03:57]} 38. Rb7 {[%clk 0:01:16]} 38... Kc6
{[%clk 0:02:43]} 39. Rb4 {[%clk 0:01:45]} 39... Rd8+ {[%clk 0:03:00]} 40. Ke2
{[%clk 0:32:00]} 40... f6 {[%clk 0:32:27]} 41. Rc4+ {[%clk 0:30:54]} 41... Kb6
{[%clk 0:30:32]} 42. Nc5 {[%clk 0:27:33]} 42... e5 {[%clk 0:27:35]} 43. Na4+
{[%clk 0:27:13]} 43... Kb7 {[%clk 0:27:34]} 44. Nc5+ {[%clk 0:12:52]} 44... Kb6
{[%clk 0:27:17]} 45. a4 {[%clk 0:08:27]} 45... a5 {[%clk 0:25:56]} 46. g3 {[%clk
0:06:44]} 46... Rd5 {[%clk 0:25:49]} 47. Ne4 {[%clk 0:06:29]} 47... Rd8 {[%clk
0:23:46]} 48. b4 {[%clk 0:05:18]} 48... axb4 {[%clk 0:16:28]} 49. a5+ {[%clk
0:02:55]} 49... Kb7 {[%clk 0:15:14]} 50. Nc5+ {[%clk 0:02:45]} 50... Ka7 {[%clk
0:14:07]} 51. Rxb4 {[%clk 0:03:09]} 51... Na6 {[%clk 0:12:27]} 52. Rb7+ {[%clk
0:01:19]} 52... Ka8 {[%clk 0:12:27]} 53. Ne6 {[%clk 0:01:40]} 53... Kxb7 {[%clk
0:11:26]} 54. Nxd8+ {[%clk 0:02:05]} 54... Kc8 {[%clk 0:11:40]} 55. Ne6 {[%clk
0:01:56]} 55... g6 {[%clk 0:10:54]} 56. Nf8 {[%clk 0:02:25]} 56... g5 {[%clk
0:10:55]} 57. Nh7 {[%clk 0:02:49]} 57... gxh4 {[%clk 0:10:06]} 58. gxh4 {[%clk
0:03:17]} 58... f5 {[%clk 0:09:11]} 59. Nf6 {[%clk 0:03:46]} 59... Nc5 {[%clk
0:04:06]} 60. Nxh5 {[%clk 0:04:09]} 60... Ne6 {[%clk 0:02:58]} 61. Ke3 {[%clk
0:03:23]} 61... Kb7 {[%clk 0:03:13]} 62. f4 {[%clk 0:03:45]} 62... exf4+ 63.
Nxf4 {[%clk 0:04:14]} 63... Nf8 {[%clk 0:00:35]} 64. Kd4 {[%clk 0:04:02]} 64...
Nd7 {[%clk 0:00:33]} 65. h5 {[%clk 0:01:45]} 65... Nf6 {[%clk 0:00:39]} 66. h6
{[%clk 0:02:09]} 66... Ka6 {[%clk 0:00:57]} 67. Nd5 {[%clk 0:01:39]} 67... Nh7
{[%clk 0:01:00]} 68. Ke5 {[%clk 0:02:01]} 68... f4 {[%clk 0:00:45]} 69. Kxf4
{[%clk 0:02:14]} 69... Kxa5 {[%clk 0:01:04]} 70. Kf5 {[%clk 0:02:39]} 70... Kb5
{[%clk 0:01:17]} 71. Nf6 {[%clk 0:02:55]} 71... Nf8 {[%clk 0:01:31]} 72. Nd7
{[%clk 0:03:20]} 1-0

[Variant "Standard"]
[Site "Europe Echecs"]

[Event "Sunway Sitges Chess Festival"]
[Date "2024.12.21"]
[White "Wang, Lachlan"]
[Black "Van Zyl-Rudd, Jack"]
[WhiteElo "1848"]
[BlackElo "2268"]
[Round "7.34"]
[Result "1-0"]
[TimeControl "40/5400+30:1800+30"]

1. e4 {[%clk 1:30:59]} 1... c5 {[%clk 1:25:37]} 2. Nf3 {[%clk 1:31:19]} 2... d6
{[%clk 1:24:44]} 3. d4 {[%clk 1:31:45]} 3... cxd4 {[%clk 1:25:11]} 4. Nxd4
{[%clk 1:32:13]} 4... Nf6 {[%clk 1:24:41]} 5. Nc3 {[%clk 1:32:39]} 5... a6
{[%clk 1:25:07]} 6. Rg1 {[%clk 1:32:58]} 6... Nc6 {[%clk 1:24:57]} 7. g4 {[%clk
1:33:20]} 7... h6 {[%clk 1:24:30]} 8. Be3 {[%clk 1:30:29]} 8... Nxd4 {[%clk
1:22:12]} 9. Bxd4 {[%clk 1:30:36]} 9... e5 {[%clk 1:22:35]} 10. Be3 {[%clk
1:31:03]} 10... Be6 {[%clk 1:23:01]} 11. h4 {[%clk 1:30:56]} 11... Rc8 {[%clk
1:22:59]} 12. g5 {[%clk 1:30:28]} 12... hxg5 {[%clk 1:23:15]} 13. hxg5 {[%clk
1:30:57]} 13... Rxc3 {[%clk 1:23:34]} 14. bxc3 {[%clk 1:10:31]} 14... Nxe4
{[%clk 1:23:51]} 15. Bg2 {[%clk 1:10:36]} 15... Nxc3 {[%clk 1:05:47]} 16. Qd2
{[%clk 1:09:28]} 16... Qc7 {[%clk 1:00:31]} 17. Bb6 {[%clk 0:40:51]} 17... Qxb6
{[%clk 0:41:34]} 18. Qxc3 {[%clk 0:40:23]} 18... d5 {[%clk 0:27:10]} 19. Qxe5
{[%clk 0:18:34]} 19... Bc5 {[%clk 0:22:32]} 20. Qg3 {[%clk 0:07:06]} 20... O-O
{[%clk 0:16:48]} 21. Rh1 {[%clk 0:06:51]} 21... Qb4+ {[%clk 0:12:21]} 22. Kf1
{[%clk 0:07:02]} 22... Qb2 {[%clk 0:08:45]} 23. Re1 {[%clk 0:07:21]} 23... Rd8
{[%clk 0:04:44]} 24. Qh4 {[%clk 0:06:54]} 24... Kf8 {[%clk 0:04:37]} 25. g6
{[%clk 0:06:18]} 25... Qb5+ {[%clk 0:03:58]} 26. Kg1 {[%clk 0:06:36]} 26... Qa5
{[%clk 0:04:00]} 27. Qxd8+ {[%clk 0:05:35]} 27... Qxd8 {[%clk 0:04:22]} 28. Rh8+
{[%clk 0:06:00]} 28... Ke7 {[%clk 0:04:47]} 29. Rxd8 {[%clk 0:06:28]} 29... Kxd8
{[%clk 0:05:13]} 30. gxf7 {[%clk 0:06:16]} 30... Bxf7 {[%clk 0:05:32]} 31. Rd1
{[%clk 0:06:36]} 31... d4 {[%clk 0:03:10]} 32. Bxb7 {[%clk 0:06:21]} 32... a5
{[%clk 0:02:13]} 33. c3 {[%clk 0:06:23]} 33... Bxa2 {[%clk 0:00:58]} 34. cxd4
{[%clk 0:05:10]} 34... Bb4 {[%clk 0:01:22]} 35. Bc6 {[%clk 0:05:25]} 35... Bb3
{[%clk 0:00:46]} 36. Rb1 {[%clk 0:05:51]} 36... Bc4 {[%clk 0:00:55]} 37. Kg2
{[%clk 0:04:58]} 37... Kc7 {[%clk 0:00:57]} 38. Ba4 {[%clk 0:04:58]} 38... Kd6
{[%clk 0:01:05]} 39. Kf3 {[%clk 0:05:16]} 39... Kd5 {[%clk 0:00:48]} 40. Ke3
{[%clk 0:35:00]} 40... Bc3 {[%clk 0:30:47]} 41. Rd1 {[%clk 0:34:38]} 41... Bb2
{[%clk 0:21:11]} 42. Be8 {[%clk 0:34:39]} 42... Kd6 {[%clk 0:19:51]} 43. Rg1
{[%clk 0:33:39]} 43... Ke7 {[%clk 0:15:40]} 44. Ba4 {[%clk 0:32:33]} 44... Kf6
{[%clk 0:15:27]} 45. Ke4 {[%clk 0:32:24]} 45... Be6 {[%clk 0:15:15]} 46. Rd1
{[%clk 0:28:13]} 46... Ba3 {[%clk 0:13:33]} 47. d5 {[%clk 0:27:24]} 47... Bg4
{[%clk 0:13:37]} 48. f3 {[%clk 0:27:35]} 48... Bf5+ {[%clk 0:14:02]} 49. Kd4
{[%clk 0:27:59]} 49... g5 {[%clk 0:13:20]} 50. Kc4 {[%clk 0:26:47]} 50... Bb4
{[%clk 0:10:17]} 51. Be8 {[%clk 0:21:57]} 51... Ke5 {[%clk 0:08:57]} 52. Bf7
{[%clk 0:15:50]} 52... Bc2 {[%clk 0:06:21]} 53. Rg1 {[%clk 0:11:36]} 53... Kf6
{[%clk 0:03:16]} 54. Bh5 {[%clk 0:09:49]} 54... Kf5 {[%clk 0:01:03]} 55. Bg4+
{[%clk 0:06:53]} 55... Ke5 {[%clk 0:00:56]} 56. Rg2 {[%clk 0:06:37]} 56... Ba4
{[%clk 0:00:42]} 57. Re2+ {[%clk 0:06:55]} 57... Kd6 {[%clk 0:00:57]} 58. Re6+
{[%clk 0:07:18]} 58... Kc7 {[%clk 0:01:17]} 59. Rg6 {[%clk 0:07:19]} 59... Be7
{[%clk 0:01:02]} 60. Kd4 {[%clk 0:06:20]} 60... Be8 {[%clk 0:00:37]} 61. Re6
{[%clk 0:06:32]} 61... Kd8 {[%clk 0:00:56]} 62. Ra6 {[%clk 0:05:44]} 62... Bb4
{[%clk 0:00:59]} 63. d6 {[%clk 0:06:07]} 1-0

[Variant "Standard"]
[Site "Europe Echecs"]